[Event "*** Titled Tuesday Blitz"]
[Site "Chess.com"]
[Date "2018.08.07"]
[Round "7"]
[White "MITerryble"]
[Black "OparinGrigoriy"]
[Result "1/2-1/2"]
[WhiteElo "2768"]
[BlackElo "2880"]
[TimeControl "180+2"]
[EndTime "14:35:28 PDT"]
[Termination "Game drawn by repetition"]

1. d4 {[%clk 0:02:32.8]} 1... Nf6 {[%clk 0:03:01]} 2. Bg5 {[%clk 0:02:30.4]}
2... e6 {[%clk 0:03:01.4]} 3. e4 {[%clk 0:02:29.6]} 3... h6 {[%clk 0:03:02.6]}
4. Bxf6 {[%clk 0:02:30.4]} 4... Qxf6 {[%clk 0:03:04.1]} 5. c3 {[%clk 0:02:32.3]}
5... d5 {[%clk 0:03:04.2]} 6. e5 {[%clk 0:02:20.5]} 6... Qd8 {[%clk 0:03:04.6]}
7. a3 {[%clk 0:02:20.1]} 7... c5 {[%clk 0:03:05.4]} 8. Nf3 {[%clk 0:02:16.8]}
8... Bd7 {[%clk 0:03:06.3]} 9. b4 {[%clk 0:02:15.4]} 9... b6 {[%clk 0:02:58.6]}
10. Bd3 {[%clk 0:02:01.9]} 10... a5 {[%clk 0:02:59.7]} 11. bxc5 {[%clk
0:02:01.5]} 11... bxc5 {[%clk 0:03:00]} 12. O-O {[%clk 0:02:00.5]} 12... Nc6
{[%clk 0:02:55.8]} 13. a4 {[%clk 0:01:54.7]} 13... Be7 {[%clk 0:02:52.2]} 14.
Bb5 {[%clk 0:01:52.3]} 14... c4 {[%clk 0:02:50.2]} 15. Na3 {[%clk 0:01:52.4]}
15... O-O {[%clk 0:02:49.7]} 16. Qd2 {[%clk 0:01:46.8]} 16... Bxa3 {[%clk
0:02:48]} 17. Rxa3 {[%clk 0:01:47]} 17... Qe7 {[%clk 0:02:46.2]} 18. Ra2 {[%clk
0:01:44.3]} 18... Rfb8 {[%clk 0:02:47.4]} 19. Rb2 {[%clk 0:01:44.3]} 19... Rb7
{[%clk 0:02:44.3]} 20. Rfb1 {[%clk 0:01:44.9]} 20... Rab8 {[%clk 0:02:45.5]} 21.
h4 {[%clk 0:01:44.8]} 21... Na7 {[%clk 0:02:37.3]} 22. Bxd7 {[%clk 0:01:44.8]}
22... Qxd7 {[%clk 0:02:38.5]} 23. Rxb7 {[%clk 0:01:44.8]} 23... Rxb7 {[%clk
0:02:39.7]} 24. Rxb7 {[%clk 0:01:46.6]} 24... Qxb7 {[%clk 0:02:40.5]} 25. Qa2
{[%clk 0:01:40.2]} 25... Qb3 {[%clk 0:02:31.2]} 26. Qxb3 {[%clk 0:00:36.5]}
26... cxb3 {[%clk 0:02:32.5]} 27. Nd2 {[%clk 0:00:37.7]} 27... b2 {[%clk
0:02:34.4]} 28. Kf1 {[%clk 0:00:38.9]} 28... Nc8 {[%clk 0:02:35.3]} 29. Ke2
{[%clk 0:00:39.9]} 29... Nb6 {[%clk 0:02:36]} 30. Kd3 {[%clk 0:00:40.7]} 30...
Nxa4 {[%clk 0:02:32.1]} 31. Kc2 {[%clk 0:00:41.6]} 31... g5 {[%clk 0:02:22.7]}
32. h5 {[%clk 0:00:36.7]} 32... f6 {[%clk 0:02:20.5]} 33. exf6 {[%clk
0:00:32.6]} 33... Kf7 {[%clk 0:02:20.1]} 34. Kb3 {[%clk 0:00:34]} 34... Nb6
{[%clk 0:02:21.4]} 35. Kxb2 {[%clk 0:00:34.9]} 35... Kxf6 {[%clk 0:02:22.3]} 36.
g4 {[%clk 0:00:35.2]} 36... e5 {[%clk 0:02:13.1]} 37. Kb3 {[%clk 0:00:35.2]}
37... e4 {[%clk 0:02:02.7]} 38. Nf1 {[%clk 0:00:32.8]} 38... Nc4 {[%clk
0:01:59.7]} 39. Ne3 {[%clk 0:00:33.7]} 39... Nb6 {[%clk 0:01:29.5]} 40. Nf5
{[%clk 0:00:30.3]} 40... Nc4 {[%clk 0:01:29.9]} 41. Ne3 {[%clk 0:00:18]} 41...
Nb6 {[%clk 0:01:30.1]} 42. Nf5 {[%clk 0:00:13.6]} 42... Nc4 {[%clk 0:01:31.2]}
43. Ka4 {[%clk 0:00:08.2]} 43... Nb2+ {[%clk 0:01:19.8]} 44. Kxa5 {[%clk
0:00:09.1]} 44... Nd1 {[%clk 0:01:21.7]} 45. Ne3 {[%clk 0:00:09.4]} 45... Nxc3
{[%clk 0:00:44.8]} 46. Kb4 {[%clk 0:00:09.7]} 46... Ne2 {[%clk 0:00:44.3]} 47.
Kc5 {[%clk 0:00:08.8]} 47... Ke6 {[%clk 0:00:26.9]} 48. Nxd5 {[%clk 0:00:10.7]}
48... Nc1 {[%clk 0:00:28]} 49. Kc4 {[%clk 0:00:05.7]} 49... Nd3 {[%clk
0:00:23.9]} 50. Ne3 {[%clk 0:00:04.7]} 50... Nxf2 {[%clk 0:00:25.1]} 51. Kc5
{[%clk 0:00:05.7]} 51... Nd3+ {[%clk 0:00:26.2]} 52. Kc6 {[%clk 0:00:06.4]}
52... Nb4+ {[%clk 0:00:27.2]} 53. Kc5 {[%clk 0:00:07.5]} 53... Nd3+ {[%clk
0:00:28.3]} 54. Kc6 {[%clk 0:00:08.6]} 54... Nb4+ {[%clk 0:00:29.4]} 55. Kc5
{[%clk 0:00:09.9]} 55... Nd3+ {[%clk 0:00:30.8]} 1/2-1/2

[Event "*** Titled Tuesday Blitz"]
[Site "Chess.com"]
[Date "2018.08.07"]
[Round "7"]
[White "timator"]
[Black "djamir"]
[Result "0-1"]
[WhiteElo "2371"]
[BlackElo "2648"]
[TimeControl "180+2"]
[EndTime "14:35:28 PDT"]
[Termination "djamir won by resignation"]

1. Nf3 {[%clk 0:03:01.9]} 1... d5 {[%clk 0:02:55.3]} 2. g3 {[%clk 0:03:02.7]}
2... Nc6 {[%clk 0:02:53.3]} 3. d4 {[%clk 0:03:02.9]} 3... Bf5 {[%clk 0:02:53.4]}
4. Bg2 {[%clk 0:03:03.4]} 4... e6 {[%clk 0:02:54.7]} 5. O-O {[%clk 0:03:04.1]}
5... Bd6 {[%clk 0:02:54.4]} 6. c4 {[%clk 0:03:05.2]} 6... Nf6 {[%clk 0:02:55.3]}
7. Nc3 {[%clk 0:03:05.6]} 7... h6 {[%clk 0:02:53.2]} 8. cxd5 {[%clk 0:03:04.5]}
8... exd5 {[%clk 0:02:54.1]} 9. Bf4 {[%clk 0:02:44.6]} 9... Bxf4 {[%clk
0:02:49.7]} 10. gxf4 {[%clk 0:02:46.5]} 10... O-O {[%clk 0:02:49.8]} 11. Ne5
{[%clk 0:02:46.1]} 11... Ne7 {[%clk 0:02:47.2]} 12. Qb3 {[%clk 0:02:43.1]} 12...
Rb8 {[%clk 0:02:47.8]} 13. Rac1 {[%clk 0:02:42.3]} 13... c6 {[%clk 0:02:48.6]}
14. Rfd1 {[%clk 0:02:40.9]} 14... Ng6 {[%clk 0:02:45.4]} 15. e3 {[%clk 0:02:41]}
15... Nh4 {[%clk 0:02:46.4]} 16. Ne2 {[%clk 0:02:39.2]} 16... Nxg2 {[%clk
0:02:32]} 17. Kxg2 {[%clk 0:02:41.1]} 17... Be4+ {[%clk 0:02:25.7]} 18. f3
{[%clk 0:02:38.8]} 18... Bh7 {[%clk 0:02:26.4]} 19. Ng3 {[%clk 0:02:39.6]} 19...
Ne8 {[%clk 0:02:19]} 20. Qa3 {[%clk 0:02:39.7]} 20... a6 {[%clk 0:02:16.1]} 21.
Kf2 {[%clk 0:02:29.1]} 21... Nc7 {[%clk 0:01:56.3]} 22. Rg1 {[%clk 0:02:23.4]}
22... Kh8 {[%clk 0:01:47.2]} 23. Rg2 {[%clk 0:02:15.7]} 23... Nb5 {[%clk
0:01:43.8]} 24. Qb3 {[%clk 0:02:13.8]} 24... Nd6 {[%clk 0:01:32]} 25. Ke2 {[%clk
0:02:12.9]} 25... f6 {[%clk 0:01:15.8]} 26. Nd3 {[%clk 0:02:12.8]} 26... Qe7
{[%clk 0:01:15.7]} 27. Kf2 {[%clk 0:01:27.8]} 27... Rbe8 {[%clk 0:01:14]} 28.
Re1 {[%clk 0:01:28.5]} 28... g5 {[%clk 0:01:10.5]} 29. Nh5 {[%clk 0:01:04.9]}
29... Bg6 {[%clk 0:00:59.6]} 30. Ng3 {[%clk 0:00:52.9]} 30... Bxd3 {[%clk
0:00:59.5]} 31. Qxd3 {[%clk 0:00:53.4]} 31... gxf4 {[%clk 0:01:00.9]} 32. Nh5
{[%clk 0:00:46]} 32... fxe3+ {[%clk 0:01:00.2]} 33. Rxe3 {[%clk 0:00:21.3]}
33... Qxe3+ {[%clk 0:00:56.9]} 34. Qxe3 {[%clk 0:00:23.2]} 34... Rxe3 {[%clk
0:00:58.7]} 35. Kxe3 {[%clk 0:00:25.1]} 35... Nf5+ {[%clk 0:00:56.6]} 36. Kd3
{[%clk 0:00:24.4]} 36... Kh7 {[%clk 0:00:57.9]} 37. Nf4 {[%clk 0:00:23]} 37...
Rg8 {[%clk 0:00:54.8]} 38. Rxg8 {[%clk 0:00:23.6]} 38... Kxg8 {[%clk 0:00:56.7]}
39. Ne6 {[%clk 0:00:25.3]} 39... Nd6 {[%clk 0:00:54.7]} 40. b3 {[%clk
0:00:22.3]} 40... Kf7 {[%clk 0:00:55.1]} 41. Nf4 {[%clk 0:00:23.7]} 41... Nf5
{[%clk 0:00:50]} 42. a4 {[%clk 0:00:23.8]} 42... a5 {[%clk 0:00:49.3]} 43. Nh5
{[%clk 0:00:22.1]} 43... Ne7 {[%clk 0:00:44.3]} 44. Nf4 {[%clk 0:00:22.7]} 44...
Ng6 {[%clk 0:00:45.4]} 45. Nh5 {[%clk 0:00:23.3]} 45... f5 {[%clk 0:00:44.7]}
46. Ke3 {[%clk 0:00:23.7]} 46... Ke6 {[%clk 0:00:42.6]} 47. f4 {[%clk
0:00:22.8]} 47... Kf7 {[%clk 0:00:40.7]} 48. Ng3 {[%clk 0:00:23.7]} 48... Ne7
{[%clk 0:00:40.5]} 49. Ne2 {[%clk 0:00:20.5]} 49... Nc8 {[%clk 0:00:40.3]} 50.
Nc1 {[%clk 0:00:21.4]} 50... Ke6 {[%clk 0:00:35.4]} 51. Nd3 {[%clk 0:00:22.5]}
51... b6 {[%clk 0:00:35.7]} 52. Ne5 {[%clk 0:00:20.1]} 52... c5 {[%clk
0:00:31.9]} 53. Kd3 {[%clk 0:00:21]} 53... Nd6 {[%clk 0:00:32.3]} 54. dxc5
{[%clk 0:00:21.5]} 54... bxc5 {[%clk 0:00:34.2]} 55. Nc6 {[%clk 0:00:23]} 55...
Nb7 {[%clk 0:00:34.9]} 56. Ne5 {[%clk 0:00:24.2]} 56... Kf6 {[%clk 0:00:26.9]}
57. h4 {[%clk 0:00:23.4]} 57... h5 {[%clk 0:00:25.2]} 58. Nd7+ {[%clk
0:00:23.6]} 58... Ke7 {[%clk 0:00:25.6]} 59. Ne5 {[%clk 0:00:24.1]} 59... Ke6
{[%clk 0:00:27]} 60. Nc6 {[%clk 0:00:24.3]} 60... Kd6 {[%clk 0:00:21.3]} 61. Ne5
{[%clk 0:00:25.4]} 61... Nd8 {[%clk 0:00:19.5]} 62. Nf7+ {[%clk 0:00:26.6]}
62... Nxf7 {[%clk 0:00:20.1]} 0-1

[Event "*** Titled Tuesday Blitz"]
[Site "Chess.com"]
[Date "2018.08.07"]
[Round "7"]
[White "Caisachess"]
[Black "Manukyan_Artak"]
[Result "0-1"]
[WhiteElo "2242"]
[BlackElo "2344"]
[TimeControl "180+2"]
[EndTime "14:35:30 PDT"]
[Termination "Manukyan_Artak won by resignation"]

1. e4 {[%clk 0:03:01.9]} 1... e6 {[%clk 0:03:01.4]} 2. d4 {[%clk 0:03:02.6]}
2... d5 {[%clk 0:03:01.8]} 3. Bd3 {[%clk 0:03:04.1]} 3... dxe4 {[%clk
0:03:02.5]} 4. Bxe4 {[%clk 0:03:06]} 4... Nf6 {[%clk 0:03:04.1]} 5. Bf3 {[%clk
0:03:07.6]} 5... c6 {[%clk 0:03:01.3]} 6. Ne2 {[%clk 0:03:08]} 6... Bd6 {[%clk
0:03:01.7]} 7. c4 {[%clk 0:03:09.2]} 7... O-O {[%clk 0:03:02.1]} 8. O-O {[%clk
0:03:09.3]} 8... Nbd7 {[%clk 0:03:02.6]} 9. Nbc3 {[%clk 0:03:10.7]} 9... Re8
{[%clk 0:03:00.8]} 10. Ng3 {[%clk 0:03:09.8]} 10... Qc7 {[%clk 0:02:54.7]} 11.
Re1 {[%clk 0:03:08.9]} 11... Bf4 {[%clk 0:02:44.5]} 12. Bxf4 {[%clk 0:03:04]}
12... Qxf4 {[%clk 0:02:45.4]} 13. Nge4 {[%clk 0:02:57.1]} 13... Rd8 {[%clk
0:02:30]} 14. g3 {[%clk 0:02:55.4]} 14... Qc7 {[%clk 0:02:23.2]} 15. Qe2 {[%clk
0:02:51.6]} 15... b6 {[%clk 0:02:04.2]} 16. Rad1 {[%clk 0:02:50.1]} 16... Bb7
{[%clk 0:02:02.1]} 17. Ng5 {[%clk 0:02:47.9]} 17... Nf8 {[%clk 0:01:57.7]} 18.
Qe5 {[%clk 0:02:37.8]} 18... Qxe5 {[%clk 0:01:49.4]} 19. dxe5 {[%clk 0:02:26]}
19... Rxd1 {[%clk 0:01:48.9]} 20. Rxd1 {[%clk 0:02:27.4]} 20... N6d7 {[%clk
0:01:49.2]} 21. Re1 {[%clk 0:02:13.3]} 21... Ng6 {[%clk 0:01:47.1]} 22. Bg2
{[%clk 0:01:53.2]} 22... Ndxe5 {[%clk 0:01:43]} 23. c5 {[%clk 0:01:49]} 23...
bxc5 {[%clk 0:01:27.1]} 24. Na4 {[%clk 0:01:41.7]} 24... Nd3 {[%clk 0:01:24]}
25. Rd1 {[%clk 0:01:39.1]} 25... c4 {[%clk 0:01:18.2]} 26. b3 {[%clk 0:01:28.5]}
26... Ba6 {[%clk 0:01:08.7]} 27. bxc4 {[%clk 0:01:01.6]} 27... Bxc4 {[%clk
0:01:07.3]} 28. Bf1 {[%clk 0:01:01.8]} 28... Bb5 {[%clk 0:00:43.1]} 29. Nc3
{[%clk 0:00:57.8]} 29... Nb2 {[%clk 0:00:40.9]} 30. Rd7 {[%clk 0:00:57.4]} 30...
Bxf1 {[%clk 0:00:40.2]} 31. Kxf1 {[%clk 0:00:56.4]} 31... Ne5 {[%clk 0:00:41.5]}
32. Rc7 {[%clk 0:00:56]} 32... h6 {[%clk 0:00:42.1]} 33. Nge4 {[%clk 0:00:53.1]}
33... Nbd3 {[%clk 0:00:34.9]} 34. f4 {[%clk 0:00:52.8]} 34... Ng4 {[%clk
0:00:34.9]} 35. Ke2 {[%clk 0:00:44.4]} 35... Nb4 {[%clk 0:00:34]} 36. Nd6 {[%clk
0:00:34.7]} 36... Nf6 {[%clk 0:00:23.9]} 37. Nxf7 {[%clk 0:00:32.7]} 37... Nfd5
{[%clk 0:00:24.3]} 38. Nxd5 {[%clk 0:00:29.5]} 38... Nxd5 {[%clk 0:00:21]} 39.
Rb7 {[%clk 0:00:27.1]} 39... c5 {[%clk 0:00:21.3]} 40. Nd6 {[%clk 0:00:21.5]}
40... Rd8 {[%clk 0:00:21.2]} 41. Nc4 {[%clk 0:00:20.6]} 41... Nc3+ {[%clk
0:00:21.2]} 42. Ke3 {[%clk 0:00:21.4]} 42... Nxa2 {[%clk 0:00:22.9]} 43. Rxa7
{[%clk 0:00:22.1]} 43... Nb4 {[%clk 0:00:23.7]} 44. Rc7 {[%clk 0:00:22.9]} 44...
Rd3+ {[%clk 0:00:22.7]} 45. Ke4 {[%clk 0:00:22.6]} 45... Rd4+ {[%clk 0:00:23.5]}
46. Ke5 {[%clk 0:00:24]} 46... Rxc4 {[%clk 0:00:25.4]} 47. Kxe6 {[%clk
0:00:25.6]} 47... Rc1 {[%clk 0:00:25.9]} 48. f5 {[%clk 0:00:25.7]} 48... c4
{[%clk 0:00:24.2]} 49. f6 {[%clk 0:00:26.5]} 49... gxf6 {[%clk 0:00:25]} 50.
Rc8+ {[%clk 0:00:27.2]} 50... Kh7 {[%clk 0:00:25.5]} 51. Kxf6 {[%clk 0:00:27.3]}
51... Nd5+ {[%clk 0:00:26.5]} 52. Ke6 {[%clk 0:00:27.2]} 52... Ne3 {[%clk
0:00:25.6]} 53. Kf6 {[%clk 0:00:27.7]} 53... Rf1+ {[%clk 0:00:26]} 54. Ke6
{[%clk 0:00:25.2]} 54... Kg6 {[%clk 0:00:21.8]} 55. g4 {[%clk 0:00:21.5]} 55...
Kg5 {[%clk 0:00:21.6]} 56. h3 {[%clk 0:00:21.6]} 56... Rc1 {[%clk 0:00:21.1]}
57. Rg8+ {[%clk 0:00:19.4]} 57... Kf4 {[%clk 0:00:21.9]} 58. Rg6 {[%clk
0:00:18.5]} 58... c3 {[%clk 0:00:22.8]} 59. Rf6+ {[%clk 0:00:18.8]} 59... Ke4
{[%clk 0:00:23.6]} 60. Rxh6 {[%clk 0:00:19.8]} 60... c2 {[%clk 0:00:24.8]} 0-1

[Event "*** Titled Tuesday Blitz"]
[Site "Chess.com"]
[Date "2018.08.07"]
[Round "7"]
[White "yoolund"]
[Black "Chakraborty-ARZ"]
[Result "1-0"]
[WhiteElo "2514"]
[BlackElo "2428"]
[TimeControl "180+2"]
[EndTime "14:35:48 PDT"]
[Termination "yoolund won by resignation"]

1. b3 {[%clk 0:03:01.9]} 1... e5 {[%clk 0:02:54.8]} 2. Bb2 {[%clk 0:03:02.5]}
2... Nc6 {[%clk 0:02:55.4]} 3. e3 {[%clk 0:03:03.4]} 3... Nf6 {[%clk 0:02:56]}
4. Nf3 {[%clk 0:03:04]} 4... Bd6 {[%clk 0:02:55.6]} 5. Nc3 {[%clk 0:03:02.4]}
5... a6 {[%clk 0:02:52.9]} 6. d4 {[%clk 0:03:02.4]} 6... O-O {[%clk 0:02:50.8]}
7. Be2 {[%clk 0:02:56.3]} 7... exd4 {[%clk 0:02:38.4]} 8. Nxd4 {[%clk
0:02:55.6]} 8... Re8 {[%clk 0:02:35.1]} 9. O-O {[%clk 0:02:19.4]} 9... Bf8
{[%clk 0:02:30.7]} 10. Nxc6 {[%clk 0:02:01.2]} 10... dxc6 {[%clk 0:02:32.6]} 11.
Qxd8 {[%clk 0:02:02]} 11... Rxd8 {[%clk 0:02:34.5]} 12. Rfd1 {[%clk 0:02:00.4]}
12... Bf5 {[%clk 0:02:35.3]} 13. Bd3 {[%clk 0:02:00.7]} 13... Bg6 {[%clk
0:02:30.4]} 14. Bxg6 {[%clk 0:01:53.7]} 14... hxg6 {[%clk 0:02:32.3]} 15. Ne2
{[%clk 0:01:46.8]} 15... Bc5 {[%clk 0:02:19.8]} 16. Bxf6 {[%clk 0:01:40.9]}
16... gxf6 {[%clk 0:02:20.5]} 17. Kf1 {[%clk 0:01:38.9]} 17... Kf8 {[%clk
0:02:21.2]} 18. c3 {[%clk 0:01:36.7]} 18... Ke7 {[%clk 0:02:21.1]} 19. Ke1
{[%clk 0:01:37.3]} 19... Bd6 {[%clk 0:02:19.7]} 20. h3 {[%clk 0:01:32.4]} 20...
Be5 {[%clk 0:02:20.5]} 21. Rxd8 {[%clk 0:01:29.3]} 21... Rxd8 {[%clk 0:02:22.4]}
22. Rd1 {[%clk 0:01:29.8]} 22... Rxd1+ {[%clk 0:02:05.3]} 23. Kxd1 {[%clk
0:01:31.6]} 23... b5 {[%clk 0:01:19.1]} 24. Kc2 {[%clk 0:01:29.5]} 24... c5
{[%clk 0:01:20]} 25. Kd3 {[%clk 0:01:24.9]} 25... f5 {[%clk 0:01:20.7]} 26. g4
{[%clk 0:01:03.2]} 26... Ke6 {[%clk 0:01:17.2]} 27. f4 {[%clk 0:00:55]} 27...
Bg7 {[%clk 0:01:04]} 28. Ng3 {[%clk 0:00:48]} 28... fxg4 {[%clk 0:00:56.3]} 29.
hxg4 {[%clk 0:00:49.9]} 29... Kd5 {[%clk 0:00:49.8]} 30. e4+ {[%clk 0:00:39.8]}
30... Ke6 {[%clk 0:00:46.6]} 31. c4 {[%clk 0:00:25.4]} 31... c6 {[%clk
0:00:46.1]} 32. e5 {[%clk 0:00:25.3]} 32... g5 {[%clk 0:00:36.1]} 33. fxg5
{[%clk 0:00:20.9]} 33... Kxe5 {[%clk 0:00:32.3]} 34. Ne4 {[%clk 0:00:17.3]}
34... Bf8 {[%clk 0:00:30]} 35. Ke3 {[%clk 0:00:18.5]} 35... Be7 {[%clk
0:00:30.4]} 36. Nf6 {[%clk 0:00:07.5]} 36... Bxf6 {[%clk 0:00:29.5]} 37. gxf6
{[%clk 0:00:09.2]} 37... Kxf6 {[%clk 0:00:30.9]} 38. Kf4 {[%clk 0:00:10.6]}
38... Ke6 {[%clk 0:00:29.5]} 39. g5 {[%clk 0:00:06.1]} 39... a5 {[%clk
0:00:28.3]} 40. a4 {[%clk 0:00:05.4]} 40... b4 {[%clk 0:00:25.1]} 41. Ke4 {[%clk
0:00:05.8]} 41... Ke7 {[%clk 0:00:11.6]} 42. Ke5 {[%clk 0:00:05.7]} 42... Kf8
{[%clk 0:00:11.2]} 43. Kd6 {[%clk 0:00:06.9]} 43... Kg7 {[%clk 0:00:12.2]} 44.
Kxc5 {[%clk 0:00:07.9]} 44... Kg6 {[%clk 0:00:13.6]} 45. Kxc6 {[%clk 0:00:09.3]}
45... Kxg5 {[%clk 0:00:15.1]} 46. Kd5 {[%clk 0:00:07.9]} 46... f5 {[%clk
0:00:16]} 47. c5 {[%clk 0:00:09.7]} 47... f4 {[%clk 0:00:16.9]} 48. c6 {[%clk
0:00:11.4]} 48... f3 {[%clk 0:00:17.3]} 49. c7 {[%clk 0:00:13.2]} 49... f2
{[%clk 0:00:18.5]} 50. c8=Q {[%clk 0:00:14.6]} 50... f1=Q {[%clk 0:00:19.2]} 51.
Qg8+ {[%clk 0:00:16]} 51... Kh4 {[%clk 0:00:20]} 52. Qh7+ {[%clk 0:00:17]} 52...
Kg3 {[%clk 0:00:21]} 53. Qg6+ {[%clk 0:00:18.1]} 53... Kh2 {[%clk 0:00:21.2]}
54. Qh5+ {[%clk 0:00:19.1]} 54... Kg1 {[%clk 0:00:21]} 55. Qg5+ {[%clk
0:00:19.2]} 55... Kh1 {[%clk 0:00:19.8]} 56. Qh4+ {[%clk 0:00:18.5]} 56... Kg1
{[%clk 0:00:19.2]} 57. Qd4+ {[%clk 0:00:18.1]} 57... Kh1 {[%clk 0:00:18.1]} 58.
Kc5 {[%clk 0:00:19]} 58... Qb1 {[%clk 0:00:12.6]} 59. Qd5+ {[%clk 0:00:19.1]}
59... Kg1 {[%clk 0:00:13.1]} 60. Kb5 {[%clk 0:00:20.4]} 60... Kf1 {[%clk
0:00:13]} 61. Kxa5 {[%clk 0:00:20.7]} 61... Ke2 {[%clk 0:00:13]} 62. Kxb4 {[%clk
0:00:17.9]} 62... Qe1+ {[%clk 0:00:13.2]} 63. Kb5 {[%clk 0:00:19.2]} 63... Qb1
{[%clk 0:00:12.9]} 64. a5 {[%clk 0:00:20.1]} 64... Qh7 {[%clk 0:00:03.9]} 65. a6
{[%clk 0:00:21.1]} 65... Qc7 {[%clk 0:00:03.2]} 66. Qc4+ {[%clk 0:00:20]} 1-0

[Event "*** Titled Tuesday Blitz"]
[Site "Chess.com"]
[Date "2018.08.07"]
[Round "7"]
[White "BillieKimbah"]
[Black "penguingm1"]
[Result "0-1"]
[WhiteElo "2808"]
[BlackElo "2841"]
[TimeControl "180+2"]
[EndTime "14:35:54 PDT"]
[Termination "penguingm1 won on time"]

1. Nf3 {[%clk 0:02:42.1]} 1... d5 {[%clk 0:03:00.3]} 2. g3 {[%clk 0:02:42.9]}
2... Nf6 {[%clk 0:03:01.2]} 3. Bg2 {[%clk 0:02:43.8]} 3... e6 {[%clk 0:03:00.8]}
4. O-O {[%clk 0:02:42.6]} 4... Be7 {[%clk 0:03:02.7]} 5. c4 {[%clk 0:02:42.6]}
5... O-O {[%clk 0:03:03.8]} 6. Ne5 {[%clk 0:02:37.6]} 6... Nbd7 {[%clk
0:02:47.2]} 7. d4 {[%clk 0:02:38.1]} 7... c6 {[%clk 0:02:34.5]} 8. Nc3 {[%clk
0:02:38.7]} 8... Nxe5 {[%clk 0:02:35.3]} 9. dxe5 {[%clk 0:02:39]} 9... Nd7
{[%clk 0:02:37.2]} 10. cxd5 {[%clk 0:02:34.1]} 10... cxd5 {[%clk 0:02:39.1]} 11.
f4 {[%clk 0:02:33.8]} 11... b6 {[%clk 0:02:39.9]} 12. Be3 {[%clk 0:02:27.3]}
12... Ba6 {[%clk 0:02:36.3]} 13. Rc1 {[%clk 0:02:25.2]} 13... Rc8 {[%clk
0:02:37.2]} 14. Bf2 {[%clk 0:02:19.9]} 14... b5 {[%clk 0:02:31.2]} 15. a3 {[%clk
0:02:11.9]} 15... Qa5 {[%clk 0:02:29.3]} 16. e4 {[%clk 0:02:01.8]} 16... d4
{[%clk 0:02:26.1]} 17. Qxd4 {[%clk 0:01:53.4]} 17... Nb6 {[%clk 0:01:29.9]} 18.
Rfd1 {[%clk 0:01:36.3]} 18... Bc5 {[%clk 0:01:18.4]} 19. Qxc5 {[%clk 0:01:36.7]}
19... Rxc5 {[%clk 0:01:18.3]} 20. Bxc5 {[%clk 0:01:38.3]} 20... Nc4 {[%clk
0:01:15.7]} 21. Bf1 {[%clk 0:00:50.2]} 21... Nxb2 {[%clk 0:00:55.8]} 22. Rd7
{[%clk 0:00:50.5]} 22... Rc8 {[%clk 0:00:53]} 23. Bd4 {[%clk 0:00:24.2]} 23...
h6 {[%clk 0:00:25.7]} 24. Rb1 {[%clk 0:00:25.3]} 24... Qxa3 {[%clk 0:00:21.7]}
25. Ne2 {[%clk 0:00:20.8]} 25... Nc4 {[%clk 0:00:20.2]} 26. Rxa7 {[%clk
0:00:21.9]} 26... Nd2 {[%clk 0:00:17.6]} 27. Ra1 {[%clk 0:00:22.7]} 27... Qd3
{[%clk 0:00:18.3]} 28. R7xa6 {[%clk 0:00:05]} 28... Nxf1 {[%clk 0:00:11.5]} 29.
Kxf1 {[%clk 0:00:05.9]} 29... Rc2 {[%clk 0:00:12.6]} 30. Re1 {[%clk 0:00:06.8]}
30... b4 {[%clk 0:00:11]} 31. Rd6 {[%clk 0:00:07.3]} 31... b3 {[%clk 0:00:11.6]}
32. Kf2 {[%clk 0:00:07.6]} 32... Qxe4 {[%clk 0:00:11.8]} 33. Rd8+ {[%clk
0:00:06.3]} 33... Kh7 {[%clk 0:00:12.8]} 34. Be3 {[%clk 0:00:07.2]} 34... b2
{[%clk 0:00:13.6]} 35. Rb8 {[%clk 0:00:08.1]} 35... Qd3 {[%clk 0:00:11.4]} 36.
h4 {[%clk 0:00:08]} 36... h5 {[%clk 0:00:10.1]} 37. Kf3 {[%clk 0:00:07.7]} 37...
Rxe2 {[%clk 0:00:09]} 38. Rxe2 {[%clk 0:00:08.5]} 38... b1=Q {[%clk 0:00:10.6]}
39. Rxb1 {[%clk 0:00:09]} 39... Qxb1 {[%clk 0:00:12.5]} 40. Bf2 {[%clk
0:00:04.8]} 40... Kg6 {[%clk 0:00:12]} 41. Kg2 {[%clk 0:00:05.5]} 41... Qb7+
{[%clk 0:00:13.1]} 42. Kg1 {[%clk 0:00:05.5]} 42... Kf5 {[%clk 0:00:14.3]} 43.
Re3 {[%clk 0:00:06.3]} 43... Kg4 {[%clk 0:00:15.7]} 44. Kh2 {[%clk 0:00:06.1]}
44... Qb2 {[%clk 0:00:16.7]} 45. Kg2 {[%clk 0:00:07.5]} 45... Qc2 {[%clk
0:00:16.8]} 46. Ra3 {[%clk 0:00:07]} 46... Qc6+ {[%clk 0:00:15.8]} 47. Kh2
{[%clk 0:00:08.2]} 47... f6 {[%clk 0:00:13.8]} 48. Re3 {[%clk 0:00:06.5]} 48...
fxe5 {[%clk 0:00:12.9]} 49. Rxe5 {[%clk 0:00:07.3]} 49... Kf3 {[%clk 0:00:14.1]}
50. Kg1 {[%clk 0:00:06]} 50... Qc1+ {[%clk 0:00:14.5]} 51. Re1 {[%clk 0:00:07]}
51... Qd2 {[%clk 0:00:10.6]} 52. Re3+ {[%clk 0:00:07.8]} 52... Qxe3 {[%clk
0:00:11.8]} 53. Bxe3 {[%clk 0:00:08.9]} 53... Kxe3 {[%clk 0:00:13.7]} 54. Kg2
{[%clk 0:00:10.3]} 54... Ke2 {[%clk 0:00:14.8]} 55. Kh2 {[%clk 0:00:09.3]} 55...
Kf2 {[%clk 0:00:14.2]} 56. Kh3 {[%clk 0:00:10.2]} 56... g6 {[%clk 0:00:11.7]}
57. Kh2 {[%clk 0:00:09.2]} 57... Kf1 {[%clk 0:00:12.7]} 58. Kh1 {[%clk
0:00:10.1]} 58... Ke1 {[%clk 0:00:13.4]} 59. Kg1 {[%clk 0:00:07.2]} 59... Ke2
{[%clk 0:00:14.6]} 60. Kg2 {[%clk 0:00:08.4]} 60... Ke3 {[%clk 0:00:16]} 61. Kh1
{[%clk 0:00:07.6]} 61... Kf3 {[%clk 0:00:16.7]} 62. Kh2 {[%clk 0:00:08.8]} 62...
Kf2 {[%clk 0:00:16.8]} 63. Kh3 {[%clk 0:00:10.3]} 63... Kg1 {[%clk 0:00:16.9]}
64. g4 {[%clk 0:00:11.3]} 64... Kf2 {[%clk 0:00:18.2]} 65. gxh5 {[%clk
0:00:07.2]} 65... gxh5 {[%clk 0:00:20.1]} 66. f5 {[%clk 0:00:06.8]} 66... exf5
{[%clk 0:00:21]} 67. Kh2 {[%clk 0:00:08.7]} 67... f4 {[%clk 0:00:22.3]} 0-1